bitfinex/quotes_BTCUSD_20250101
["timestamp","ask_amount","ask_price","bid_price","bid_amount"]
[1735774755315,0.17149619,94748.0,94747.0,0.13442318]
[1735774757596,0.17449619,94748.0,94747.0,0.13442318]
[1735774761592,0.17449619,94748.0,94747.0,0.12663378]
[1735774761975,0.17449619,94748.0,94747.0,0.13442318]
[1735774762389,0.17449619,94748.0,94747.0,0.12663378]
[1735774763247,0.17149619,94748.0,94747.0,0.12663378]
[1735774763695,0.001,94748.0,94747.0,0.14143968]
[1735774764131,0.001,94748.0,94747.0,0.14922908]
[1735774764339,0.001,94748.0,94747.0,0.14143968]
[1735774765017,0.09443319,94749.0,94748.0,0.0779]
[1735774765378,0.211083,94750.0,94748.0,0.0779]
[1735774765797,0.211083,94750.0,94749.0,0.00778574]
[1735774766040,0.211083,94750.0,94749.0,0.0779]
[1735774766276,0.211083,94750.0,94749.0,0.08568574]
[1735774766566,0.211083,94750.0,94749.0,0.0779]
[1735774767086,0.09443319,94751.0,94750.0,0.0148059]
[1735774767332,0.15,94752.0,94751.0,0.0148059]
[1735774767333,0.14164979,94752.0,94751.0,0.0148059]
[1735774767577,0.14164979,94752.0,94751.0,0.24199222]
[1735774767824,0.14164979,94752.0,94751.0,0.2497743]
[1735774768315,0.14164979,94754.0,94751.0,0.1265743]
[1735774768552,0.14164979,94754.0,94753.0,0.1232]
[1735774768740,0.14164979,94754.0,94753.0,0.22718632]
[1735774769002,0.14164979,94756.0,94753.0,0.23496474]
[1735774769219,0.14164979,94756.0,94754.0,0.22718632]
[1735774769354,0.14164979,94756.0,94755.0,0.0779]
[1735774769559,0.14164979,94756.0,94755.0,0.08567475]
[1735774770271,0.44714899,94757.0,94755.0,0.08567475]
[1735774770552,0.44714899,94757.0,94755.0,0.0779]
[1735774771322,0.18913955,94756.0,94755.0,0.0779]
[1735774772243,0.18913955,94756.0,94755.0,0.0789]
[1735774772439,0.23608299,94756.0,94755.0,0.0789]
[1735774773561,0.211066,94757.0,94755.0,0.0789]
[1735774774773,0.211066,94757.0,94755.0,0.0779]
[1735774774947,0.49436559,94757.0,94755.0,0.0779]
[1735774775390,0.28329959,94757.0,94755.0,0.0779]
[1735774775601,0.28329959,94757.0,94755.0,0.0779853]
[1735774775799,0.28329959,94757.0,94756.0,0.08527292]
[1735774776895,0.211061,94760.0,94756.0,0.08527292]
[1735774777078,0.422121,94760.0,94756.0,0.0775]
[1735774777920,0.70542059,94760.0,94756.0,0.0775]
[1735774778915,0.422121,94760.0,94756.0,0.0775]
[1735774779369,0.423121,94760.0,94756.0,0.0775]
[1735774781167,0.21106,94760.0,94756.0,0.0775]
[1735774781308,0.28329959,94757.0,94756.0,0.0775]
[1735774781515,0.28329959,94757.0,94756.0,0.0795]
[1735774782002,0.28329959,94757.0,94756.0,0.08727292]
[1735774782210,0.21106,94760.0,94756.0,0.08727292]
[1735774782413,0.21106,94760.0,94756.0,0.08527292]
[1735774782613,0.21106,94760.0,94756.0,0.0805]
[1735774784473,0.28329959,94759.0,94756.0,0.0775]
[1735774784671,0.28329959,94759.0,94756.0,0.0795]
[1735774784898,0.211063,94758.0,94756.0,0.0795]
[1735774785547,0.211063,94758.0,94756.0,0.0775]
[1735774785836,0.211063,94758.0,94756.0,0.0805]
[1735774786052,0.211063,94758.0,94756.0,0.0775]
[1735774787493,0.211063,94758.0,94756.0,0.0805]
[1735774787624,0.21106,94760.0,94756.0,0.0805]
[1735774788655,0.28402048,94759.0,94758.0,0.0148059]
[1735774789433,0.28402048,94759.0,94758.0,0.11879222]
[1735774789643,0.28402048,94765.0,94758.0,0.1285038]
[1735774789824,0.28402048,94765.0,94759.0,0.10398632]
[1735774790027,0.28402048,94765.0,94759.0,0.11369561]
[1735774790430,0.49507048,94765.0,94759.0,0.11369561]
[1735774791314,0.211056,94762.0,94759.0,0.11369561]
[1735774792469,0.211056,94762.0,94759.0,0.11469561]
[1735774793276,0.21105,94765.0,94759.0,0.11469561]
[1735774794338,0.28402048,94764.0,94759.0,0.11369561]
[1735774796279,0.28402048,94763.0,94759.0,0.11369561]
[1735774796684,0.28402048,94763.0,94761.0,0.1283]
[1735774796844,0.28402048,94763.0,94762.0,0.24709222]
[1735774797059,0.28402048,94765.0,94763.0,0.292752]
[1735774797259,0.28402048,94765.0,94764.0,0.20049222]
[1735774797461,0.28402048,94765.0,94764.0,0.2134227]
[1735774797656,0.28402048,94765.0,94764.0,0.21019008]
[1735774797889,0.23653456,94765.0,94764.0,0.21019008]
[1735774798350,0.23753456,94765.0,94764.0,0.21319008]
[1735774798771,0.001,94765.0,94764.0,0.21319008]
[1735774799892,0.001,94765.0,94764.0,0.21419008]
[1735774801997,0.212048,94765.0,94764.0,0.11020376]
[1735774803508,0.212048,94765.0,94764.0,0.1005059]
[1735774804433,0.212048,94765.0,94764.0,0.11020376]
[1735774804853,0.212048,94765.0,94764.0,0.1005059]
[1735774807587,0.212048,94765.0,94764.0,0.11020376]
[1735774809852,0.212048,94765.0,94764.0,0.1005059]
[1735774810433,0.212048,94765.0,94764.0,0.1005912]
[1735774810775,0.212048,94765.0,94764.0,0.11028906]
[1735774811811,0.001,94765.0,94764.0,0.11028906]
[1735774813274,0.001,94765.0,94764.0,0.1005912]
[1735774814282,0.001,94765.0,94764.0,0.0188912]
[1735774815765,0.001,94765.0,94764.0,0.0040853]
[1735774815981,0.001,94765.0,94764.0,0.0188912]
[1735774817088,0.001,94765.0,94764.0,0.02858906]
[1735774817508,0.001,94765.0,94764.0,0.0188912]
[1735774818343,0.001,94765.0,94764.0,0.02858906]
[1735774818743,0.001,94765.0,94764.0,0.12422797]
[1735774818954,0.001,94765.0,94764.0,0.21317538]
[1735774822155,0.001,94765.0,94764.0,0.10918906]
[1735774831903,0.001,94765.0,94764.0,0.10409543]
[1735774832730,0.001,94765.0,94764.0,0.02349543]
[1735774833753,0.001,94765.0,94764.0,0.10529543]
[1735774836123,0.001,94765.0,94764.0,0.1006912]
[1735774837183,0.001,94765.0,94764.0,0.41572752]
[1735774837810,0.001,94765.0,94764.0,0.42033175]
[1735774838432,0.001,94765.0,94764.0,0.20928175]
[1735774842560,0.09558943,94765.0,94764.0,0.20928175]
[1735774843520,0.001,94765.0,94764.0,0.20928175]
[1735774843975,0.001,94765.0,94764.0,0.09048953]
[1735774844180,0.001,94765.0,94764.0,0.0188912]
[1735774844397,0.001,94765.0,94764.0,0.10019543]
[1735774845045,0.001,94765.0,94764.0,0.0955912]
[1735774845945,0.14288415,94765.0,94764.0,0.0955912]
[1735774849986,0.14288415,94765.0,94764.0,0.0188912]
[1735774850417,0.001,94765.0,94764.0,0.0188912]
[1735774854465,0.14288415,94765.0,94764.0,0.0188912]
[1735774861714,0.001,94765.0,94764.0,0.0188912]
[1735774862942,0.001,94765.0,94764.0,0.02845032]
[1735774863349,0.001,94765.0,94764.0,0.02349543]
[1735774863968,0.001,94765.0,94764.0,0.12748175]
[1735774864184,0.001,94765.0,94764.0,0.25008175]
[1735774864395,0.14320944,94765.0,94764.0,0.25008175]
[1735774865267,0.09580972,94765.0,94764.0,0.25008175]
[1735774866794,0.09580972,94765.0,94764.0,0.52938578]
[1735774867004,0.09580972,94765.0,94764.0,0.46113175]
[1735774868515,0.001,94765.0,94764.0,0.46113175]
[1735774874279,0.001,94765.0,94764.0,0.48413175]
[1735774874515,0.001,94765.0,94764.0,0.68413175]
[1735774874730,0.001,94765.0,94764.0,0.83413175]
[1735774874935,0.09480972,94774.0,94773.0,0.4258359]
[1735774875160,0.09480972,94774.0,94773.0,0.68001946]
[1735774875372,0.09480972,94774.0,94773.0,0.76411946]
[1735774875856,0.0001706,94775.0,94774.0,0.3604059]
[1735774876002,0.0001706,94775.0,94774.0,0.46439222]
[1735774876225,0.0001706,94775.0,94774.0,0.722975]
[1735774876429,0.0001706,94776.0,94774.0,0.722975]
[1735774876430,0.0001706,94776.0,94775.0,0.2148059]
[1735774876631,0.0001706,94776.0,94775.0,0.82541822]
[1735774876841,0.0001706,94776.0,94775.0,0.8300139]
[1735774877193,0.18929437,94801.0,94790.0,0.4713979]
[1735774877194,0.0001155,94801.0,94790.0,0.4713979]
[1735774877388,0.0001155,94801.0,94790.0,0.67472391]
[1735774877638,0.0001155,94801.0,94790.0,0.77930795]
[1735774878471,0.00030163,94791.0,94790.0,0.92930795]
[1735774878686,0.00030163,94791.0,94790.0,1.45678795]
[1735774878816,0.00030163,94791.0,94790.0,1.46478795]
[1735774879024,0.00130163,94791.0,94790.0,1.46478795]
[1735774879250,0.00030163,94791.0,94790.0,1.45678795]
[1735774879487,0.00230163,94791.0,94790.0,1.47178795]
[1735774880368,1e-08,94791.0,94790.0,1.47178795]
[1735774883324,1e-08,94791.0,94790.0,1.48256849]
[1735774893461,0.00017061,94791.0,94790.0,1.48256849]
[1735774894085,0.00013061,94791.0,94790.0,1.48256849]
[1735774896920,0.00013061,94791.0,94790.0,1.1332288]
[1735774897122,0.00013061,94791.0,94790.0,1.0102288]
[1735774897350,0.00013061,94791.0,94790.0,1.1332288]
[1735774897709,0.00013061,94791.0,94790.0,1.1272288]
[1735774897937,0.00013061,94791.0,94790.0,1.1182288]
[1735774898143,0.00213061,94791.0,94790.0,1.1342288]
[1735774898503,0.00013061,94791.0,94790.0,1.1182288]
[1735774898730,0.00113061,94791.0,94790.0,1.1272288]
[1735774898993,0.00213061,94791.0,94790.0,1.1332288]
[1735774903421,0.00213061,94791.0,94790.0,1.23721512]
[1735774905277,0.00213061,94791.0,94790.0,1.13721512]
[1735774905526,0.00213061,94791.0,94790.0,1.0332288]
[1735774905948,0.00213061,94791.0,94790.0,1.0333141]
[1735774908177,0.00213061,94791.0,94790.0,1.1333141]
[1735774921469,0.00213061,94791.0,94790.0,1.2333141]
[1735774922549,0.00213061,94791.0,94790.0,1.24771166]
[1735774922756,0.00213061,94791.0,94790.0,1.35169798]
[1735774924896,0.00213061,94791.0,94790.0,1.7409916]
[1735774925106,0.00213061,94791.0,94790.0,1.6409916]
[1735774925530,0.00213061,94791.0,94790.0,1.62659404]
[1735774927043,0.00213061,94791.0,94790.0,1.1333141]
[1735774941433,0.00213061,94791.0,94790.0,1.2333141]
[1735774941639,0.00213061,94791.0,94790.0,1.33730042]
[1735774942433,0.00213061,94791.0,94790.0,1.87835538]
[1735774943193,0.00213061,94791.0,94790.0,1.89275736]
[1735774944436,0.00213061,94791.0,94790.0,1.70307328]
[1735774945922,0.00213061,94791.0,94790.0,1.6886713]
[1735774947588,0.00213061,94791.0,94790.0,1.87905343]
[1735774951320,0.00213061,94791.0,94790.0,1.6886713]
[1735774951508,0.00213061,94791.0,94790.0,1.7030718]
[1735774953024,0.00213061,94791.0,94790.0,1.94017231]
[1735774954166,0.00213061,94791.0,94790.0,1.35170092]
[1735774955285,0.00213061,94791.0,94790.0,1.25170092]
[1735774955494,0.00213061,94791.0,94790.0,1.35170092]
[1735774955698,0.00213061,94791.0,94790.0,1.70301553]
[1735774956978,0.00213061,94791.0,94790.0,1.35170092]
[1735774962643,0.00213061,94791.0,94790.0,1.33730042]
[1735774963921,0.00213061,94791.0,94790.0,1.35170235]
[1735774964476,0.00213061,94791.0,94790.0,1.50170235]
[1735774965515,0.0001155,94801.0,94800.0,0.5785759]
[1735774965724,0.0001155,94801.0,94800.0,0.93261521]
[1735774965929,0.0001155,94801.0,94800.0,1.54872148]
[1735774966128,5e-07,94801.0,94800.0,1.70342589]
[1735774966368,5e-07,94801.0,94800.0,1.73644045]
[1735774966631,5e-07,94801.0,94800.0,1.70342589]
[1735774966807,5e-07,94801.0,94800.0,1.74540622]
[1735774967007,5e-07,94801.0,94800.0,1.8389096]
[1735774967552,5e-07,94801.0,94800.0,1.80592927]
[1735774967753,0.0001706,94815.0,94814.0,0.7285449]
[1735774967966,0.0001706,94815.0,94814.0,0.95091947]
[1735774968170,0.0001706,94815.0,94814.0,0.95548488]
[1735774968399,0.0001706,94815.0,94814.0,1.48283488]
[1735774969613,0.0011706,94815.0,94814.0,1.49235668]
[1735774969903,0.0011706,94815.0,94814.0,1.50135668]
[1735774972223,0.0011706,94815.0,94814.0,1.48695475]
[1735774976291,0.0011706,94815.0,94814.0,1.49753502]
[1735774990425,0.0011706,94815.0,94814.0,1.51189071]
[1735774999025,0.0011706,94815.0,94814.0,1.60662653]
[1735775000898,0.0011706,94815.0,94814.0,1.51189071]
[1735775003821,0.0011706,94815.0,94814.0,1.65399444]
[1735775006742,0.0011706,94815.0,94814.0,1.86222854]
[1735775007665,0.0011706,94815.0,94814.0,2.05170018]
[1735775008560,0.0011706,94815.0,94814.0,1.86222854]
[1735775008777,6e-07,94815.0,94814.0,2.00326667]
[1735775009805,0.0001712,94815.0,94814.0,2.00326667]
[1735775010746,0.0001712,94815.0,94814.0,1.86222854]
[1735775011514,0.0001712,94815.0,94814.0,2.35229747]
[1735775017297,0.0001712,94815.0,94814.0,2.25229747]
[1735775017502,0.0001712,94815.0,94814.0,2.35229747]
[1735775021018,0.0001712,94815.0,94814.0,2.35238277]
[1735775023553,2e-07,94815.0,94814.0,2.35238277]
[1735775033112,5.78e-05,94821.0,94820.0,0.5757309]
[1735775033316,0.00055466,94821.0,94820.0,1.33401354]
[1735775033523,0.00055466,94821.0,94820.0,1.43744459]
[1735775034150,0.00055466,94821.0,94820.0,1.78778242]
[1735775035131,0.00055466,94821.0,94820.0,1.87718242]
[1735775036087,0.00155466,94821.0,94820.0,1.88418242]
[1735775037195,0.00155466,94821.0,94820.0,2.66181442]
[1735775044362,0.00155466,94821.0,94820.0,2.56181442]
[1735775044514,0.00155466,94821.0,94820.0,2.66181442]
[1735775046276,0.00155466,94821.0,94820.0,2.37618241]
[1735775047030,0.00155466,94821.0,94820.0,2.19179609]
[1735775048563,0.00155466,94821.0,94820.0,1.6997961]
[1735775049628,0.00155466,94821.0,94820.0,1.8286961]
[1735775051100,0.00155466,94821.0,94820.0,2.6062353]
[1735775052884,0.0001706,94832.0,94831.0,0.3648059]
[1735775053086,0.0003196,94832.0,94831.0,1.26642381]
[1735775053251,0.0003196,94832.0,94831.0,1.27138986]
[1735775053943,0.0003196,94832.0,94831.0,1.6361295]
[1735775054148,0.0003196,94832.0,94831.0,1.6451295]
[1735775054780,0.0003196,94832.0,94831.0,1.6501295]
[1735775055667,0.0003196,94832.0,94831.0,1.63572769]
[1735775057867,6e-07,94832.0,94831.0,1.76462769]
[1735775058293,6e-07,94832.0,94831.0,1.7790211]
[1735775058460,0.0001157,94846.0,94842.0,0.6780829]
[1735775058662,0.00022043,94843.0,94842.0,2.37852409]
[1735775058864,0.00022043,94843.0,94842.0,2.46758083]
[1735775060031,0.00022043,94843.0,94842.0,2.81791866]
[1735775060233,0.00022043,94843.0,94842.0,2.82691866]
[1735775060388,0.00022043,94843.0,94842.0,2.93090498]
[1735775061231,0.00022043,94843.0,94842.0,2.93390498]
[1735775061593,0.00022043,94843.0,94842.0,2.93090498]
[1735775061997,0.00022043,94843.0,94842.0,2.93690498]
[1735775063362,0.00022043,94843.0,94842.0,3.17430823]
[1735775064393,0.00022043,94843.0,94842.0,2.93690498]
[1735775064572,0.0001157,94846.0,94845.0,0.3648059]
[1735775064767,0.0001157,94846.0,94845.0,1.12295854]
[1735775064993,0.0001157,94846.0,94845.0,1.12791275]
[1735775065813,0.0001157,94846.0,94845.0,1.13591275]
[1735775066972,0.0001157,94846.0,94845.0,1.14491275]
[1735775068131,0.0001157,94846.0,94845.0,1.04092643]
[1735775070417,0.0001157,94846.0,94845.0,1.12032643]
[1735775071194,0.0001157,94846.0,94845.0,1.23172643]
[1735775071398,0.0001157,94846.0,94845.0,1.12032643]
[1735775077546,7.9e-07,94847.0,94846.0,0.2378059]
[1735775077752,7.9e-07,94847.0,94846.0,1.18381654]
[1735775077976,7.9e-07,94847.0,94846.0,1.18835712]
[1735775078595,7.9e-07,94847.0,94846.0,1.20971558]
[1735775079939,7.9e-07,94847.0,94846.0,1.35971558]
[1735775080171,7.9e-07,94847.0,94846.0,1.36871558]
[1735775080580,7.9e-07,94847.0,94846.0,1.46359296]
[1735775084691,5.9e-07,94853.0,94852.0,0.6794599]
[1735775084888,0.0001706,94870.0,94852.0,0.6794599]
[1735775084889,0.0001706,94870.0,94869.0,0.2256229]
[1735775085064,0.0001706,94870.0,94869.0,0.85664922]
[1735775085217,0.0001706,94870.0,94869.0,0.94527197]
[1735775087347,0.0001706,94870.0,94869.0,0.95327197]
[1735775088387,0.0001706,94870.0,94869.0,0.95627197]
[1735775089482,0.0001706,94870.0,94869.0,0.96691874]
[1735775092369,0.0001706,94870.0,94869.0,1.03299405]
[1735775093067,0.0001706,94870.0,94869.0,0.96691874]
[1735775095122,0.0801706,94870.0,94869.0,0.96691874]
[1735775095550,0.0801706,94870.0,94869.0,0.58446275]
[1735775095784,0.15004914,94870.0,94869.0,0.54256275]
[1735775096206,0.1264706,94870.0,94869.0,0.54256275]
[1735775096615,0.1264706,94870.0,94869.0,0.53156275]
[1735775096828,0.1264706,94870.0,94869.0,0.53256275]
[1735775097036,0.1264706,94870.0,94869.0,0.53356275]
[1735775097458,0.1264706,94870.0,94869.0,0.53656275]
[1735775098486,0.1264706,94870.0,94869.0,0.60650552]
[1735775099630,0.1264706,94870.0,94869.0,0.55136865]
[1735775106320,0.1264706,94870.0,94869.0,0.53656275]
[1735775108183,0.1264706,94870.0,94869.0,0.53276275]
[1735775112722,0.3372846,94870.0,94869.0,0.53276275]
[1735775112894,0.3372846,94870.0,94869.0,0.52824]
[1735775113103,0.3372846,94870.0,94869.0,0.53298118]
[1735775113325,0.34053965,94870.0,94869.0,0.53298118]
[1735775113746,0.3420858,94870.0,94869.0,0.52898118]
[1735775114200,0.3420858,94870.0,94869.0,0.52998118]
[1735775114396,0.3420858,94870.0,94869.0,0.52898118]
[1735775114565,0.1264706,94870.0,94869.0,0.52898118]
[1735775114752,0.1274706,94870.0,94869.0,0.52898118]
[1735775115237,0.1264706,94870.0,94869.0,0.52898118]
[1735775115455,0.1264706,94870.0,94869.0,0.52424]
[1735775115683,0.1264706,94870.0,94869.0,0.52898118]
[1735775118640,0.0801706,94870.0,94869.0,0.52898118]
[1735775118820,0.0001706,94870.0,94869.0,0.54378708]
[1735775120534,0.0001706,94870.0,94869.0,0.54278708]
[1735775120761,0.0001706,94870.0,94869.0,0.54578708]
[1735775120911,0.0001706,94870.0,94869.0,0.54678708]
[1735775124229,0.0001706,94870.0,94869.0,0.53198118]
[1735775124862,0.10798301,94870.0,94869.0,0.53198118]
[1735775125800,0.10798301,94870.0,94869.0,0.53098118]
[1735775126145,0.10798301,94870.0,94869.0,0.52798118]
[1735775126353,0.0766706,94870.0,94869.0,0.52798118]
[1735775127190,0.0776706,94870.0,94869.0,0.52798118]
[1735775127526,0.0766706,94870.0,94869.0,0.52798118]
[1735775127845,0.0776706,94870.0,94869.0,0.52798118]
[1735775128080,0.0011706,94870.0,94869.0,0.52798118]
[1735775128282,0.0011706,94870.0,94869.0,0.54278708]
[1735775128451,0.0011706,94870.0,94869.0,0.54287238]
[1735775129021,0.0011706,94870.0,94869.0,0.62547238]
[1735775129250,0.0011706,94870.0,94869.0,0.70910242]
[1735775129451,0.0011706,94870.0,94869.0,0.7294587]
[1735775130222,0.0001706,94870.0,94869.0,0.7294587]
[1735775130658,0.0011706,94870.0,94869.0,0.7790587]
[1735775131045,0.0001706,94870.0,94869.0,0.7790587]
[1735775131427,0.0001706,94870.0,94869.0,0.7820587]
[1735775132894,0.0001706,94870.0,94869.0,0.7900587]
[1735775135645,0.0001706,94870.0,94869.0,0.7752528]
[1735775135944,0.0001706,94870.0,94869.0,0.7900587]
[1735775149606,0.0001706,94870.0,94869.0,0.84780346]
[1735775150623,0.0001706,94870.0,94869.0,0.97080346]
[1735775151192,0.0001706,94870.0,94869.0,0.9130587]
[1735775151394,0.0001706,94870.0,94869.0,0.92338595]
[1735775154506,0.0001706,94870.0,94869.0,0.82338595]
[1735775155630,0.0001706,94870.0,94869.0,0.80038595]
[1735775158913,0.0001706,94870.0,94869.0,0.7900587]
[1735775159118,0.0001706,94870.0,94869.0,0.6578587]
[1735775163561,0.0001706,94870.0,94869.0,0.7340587]
[1735775168943,0.0001706,94870.0,94869.0,0.6578587]
[1735775173303,0.0001706,94870.0,94869.0,0.7340587]
[1735775175954,0.0001706,94870.0,94869.0,0.6578587]
[1735775177218,0.00011548,94870.0,94869.0,0.6578587]
[1735775180450,0.00011548,94870.0,94869.0,0.6430528]
[1735775181071,0.00011548,94870.0,94869.0,0.6578587]
[1735775184118,0.00011548,94870.0,94869.0,0.7344587]
[1735775192001,0.00011548,94870.0,94869.0,0.83844502]
[1735775192683,0.00011548,94870.0,94869.0,0.7344587]
[1735775202458,0.00011548,94870.0,94869.0,0.6578587]
[1735775214792,0.00011548,94870.0,94869.0,0.7341587]
[1735775218145,0.00011548,94870.0,94869.0,0.7354359]
[1735775236589,0.00011548,94870.0,94869.0,0.6591359]
[1735775244938,0.00011548,94870.0,94869.0,0.7390359]
[1735775277112,0.00011548,94870.0,94869.0,0.7875359]
[1735775282248,0.00011548,94870.0,94869.0,0.6591359]
[1735775282379,0.00011548,94870.0,94869.0,0.6511359]
[1735775282579,0.00011548,94870.0,94869.0,0.6591359]
[1735775282919,0.00011548,94870.0,94869.0,0.6561359]
[1735775283112,0.00011548,94870.0,94869.0,0.6591359]
[1735775283526,0.00011548,94870.0,94869.0,0.6511359]
[1735775283692,0.00011548,94870.0,94869.0,0.6481359]
[1735775283904,0.00011548,94870.0,94869.0,0.6571359]
[1735775284091,0.00011548,94870.0,94869.0,0.6601359]
[1735775288017,0.00011548,94870.0,94869.0,0.7884359]
[1735775290235,0.00011548,94870.0,94869.0,0.6601359]
[1735775292709,0.00011548,94870.0,94869.0,0.54134368]
[1735775295776,0.00011548,94870.0,94869.0,0.5366025]
[1735775295991,0.00011548,94870.0,94869.0,0.54134368]
[1735775312644,0.07621548,94870.0,94869.0,0.52934368]
[1735775313055,0.07621548,94870.0,94869.0,0.53234368]
[1735775313222,0.07621548,94870.0,94869.0,0.52934368]
[1735775313954,0.07621548,94870.0,94869.0,0.53034368]
[1735775314140,0.07721548,94870.0,94869.0,0.53034368]
[1735775314339,0.07721548,94870.0,94869.0,0.52934368]
[1735775316461,0.00111548,94870.0,94869.0,0.52934368]
[1735775317214,0.38887185,94870.0,94869.0,0.52934368]
[1735775318072,0.15111548,94870.0,94869.0,0.52934368]
[1735775318375,0.15111548,94870.0,94869.0,0.5233253]
[1735775318783,0.15111548,94870.0,94869.0,0.52934368]
[1735775319123,0.29374294,94870.0,94869.0,0.52934368]
[1735775320546,0.29374294,94870.0,94869.0,0.5233253]
[1735775320947,0.29374294,94870.0,94869.0,0.52934368]
[1735775321187,0.15111548,94870.0,94869.0,0.52934368]
[1735775322238,0.19671548,94870.0,94869.0,0.52934368]
[1735775322448,0.27991548,94870.0,94869.0,0.52934368]
[1735775322687,0.27991548,94870.0,94869.0,0.5233253]
[1735775323020,0.27991548,94870.0,94869.0,0.52934368]
[1735775323224,0.47008543,94870.0,94869.0,0.52934368]
[1735775324294,0.42448543,94870.0,94869.0,0.52934368]
[1735775324495,0.34128543,94870.0,94869.0,0.52934368]
[1735775324734,0.34123044,94870.0,94869.0,0.5233253]
[1735775325256,0.15106049,94870.0,94869.0,0.52934368]
[1735775326246,0.42453858,94870.0,94869.0,0.52934368]
[1735775326650,0.42453858,94870.0,94869.0,0.5233253]
[1735775327138,0.42453858,94870.0,94869.0,0.52934368]
[1735775327139,0.15106049,94870.0,94869.0,0.52934368]
[1735775327616,0.38873799,94870.0,94869.0,0.52934368]
[1735775328394,0.15106049,94870.0,94869.0,0.52934368]
[1735775328805,0.15106049,94870.0,94869.0,0.5233253]
[1735775329186,0.15106049,94870.0,94869.0,0.52934368]
[1735775330079,0.29364586,94870.0,94869.0,0.52934368]
[1735775330714,0.48282628,94870.0,94869.0,0.52934368]
[1735775330921,0.48305464,94870.0,94869.0,0.52934368]
[1735775331126,0.60841969,94870.0,94869.0,0.52934368]
[1735775332136,0.37074219,94870.0,94869.0,0.52934368]
[1735775332915,0.39374219,94870.0,94869.0,0.52934368]
[1735775333093,0.6194913,94870.0,94869.0,0.42393368]
[1735775333269,1.9441423,94870.0,94869.0,0.42393368]
[1735775333622,1.9441423,94870.0,94869.0,8.53e-05]
[1735775333835,1.72033749,94870.0,94869.0,3e-07]
[1735775334037,0.64180649,94870.0,94869.0,3e-07]
[1735775334239,0.64080649,94870.0,94869.0,3e-07]
[1735775334657,0.6184913,94870.0,94869.0,3e-07]
[1735775334910,0.6224913,94870.0,94869.0,3e-07]
[1735775335118,0.3357941,94854.0,94853.0,8.53e-05]
[1735775335325,0.43978042,94854.0,94853.0,8.53e-05]
[1735775335527,0.47005334,94854.0,94853.0,8.53e-05]
[1735775336461,0.47043081,94854.0,94853.0,8.53e-05]
[1735775337104,0.47101679,94854.0,94853.0,8.53e-05]
[1735775337520,0.47801679,94854.0,94853.0,0.0010853]
[1735775337723,0.48101679,94854.0,94853.0,0.0010853]
[1735775338133,0.58101679,94854.0,94853.0,0.0010853]
[1735775342214,0.50341679,94854.0,94853.0,0.0010853]
[1735775342403,0.50245334,94854.0,94853.0,0.0010853]
[1735775345498,0.51616467,94854.0,94853.0,0.0010853]
[1735775351117,0.56446467,94854.0,94853.0,3e-07]
[1735775351534,0.64206467,94854.0,94853.0,3e-07]
[1735775355783,0.63906467,94854.0,94853.0,3e-07]
[1735775356204,0.5460661,94844.0,94843.0,8.53e-05]
[1735775356409,0.67305242,94844.0,94843.0,8.53e-05]
[1735775356611,0.94282651,94844.0,94843.0,3e-07]
[1735775356764,0.79468251,94844.0,94843.0,3e-07]
[1735775358795,0.79768251,94844.0,94843.0,3e-07]
[1735775358996,0.80468251,94844.0,94843.0,3e-07]
[1735775359521,0.80485311,94844.0,94843.0,3e-07]
[1735775362087,0.80185311,94844.0,94843.0,3e-07]
[1735775362410,0.80085311,94844.0,94843.0,3e-07]
[1735775362618,0.80985442,94844.0,94843.0,3e-07]
[1735775363503,0.51030315,94844.0,94843.0,3e-07]
[1735775363680,0.4760426,94844.0,94843.0,3e-07]
[1735775364108,0.50656096,94844.0,94843.0,3e-07]
[1735775364506,0.50056096,94844.0,94843.0,3e-07]
[1735775364927,0.25,94843.0,94842.0,0.0469]
[1735775365333,0.28051836,94843.0,94842.0,0.0469]
[1735775365753,0.210888,94837.0,94836.0,0.0751]
[1735775365974,0.360888,94837.0,94836.0,0.0751]
[1735775367086,0.365888,94837.0,94836.0,0.0761]
[1735775367255,0.365888,94837.0,94836.0,0.001]
[1735775367256,0.59287432,94837.0,94836.0,0.001]
[1735775367471,0.63718301,94837.0,94836.0,0.001]
[1735775367871,0.72237711,94837.0,94836.0,0.001]
[1735775368654,0.72437711,94837.0,94836.0,0.001]
[1735775370725,0.72437711,94837.0,94836.0,0.0010853]
[1735775372143,1.27179711,94837.0,94836.0,3e-07]
[1735775372328,0.80257711,94837.0,94836.0,3e-07]
[1735775372923,0.1851941,94832.0,94831.0,6e-07]
[1735775373122,0.5064967,94832.0,94831.0,2.3e-07]
[1735775373500,0.7173957,94832.0,94831.0,2.3e-07]
[1735775375060,0.7223957,94832.0,94831.0,2.3e-07]
[1735775375434,0.7313957,94832.0,94831.0,2.3e-07]
[1735775375643,0.7223957,94832.0,94831.0,2.3e-07]
[1735775376049,0.7313957,94832.0,94831.0,2.3e-07]
[1735775376415,0.7263957,94832.0,94831.0,2.3e-07]
[1735775376639,0.71859968,94832.0,94831.0,2.3e-07]
[1735775376843,0.7323957,94832.0,94831.0,2.3e-07]
[1735775377025,0.5461171,94821.0,94814.0,8.53e-05]
[1735775377238,1.46464103,94821.0,94814.0,8.53e-05]
[1735775377436,0.70367419,94821.0,94814.0,8.53e-05]
[1735775377612,1.52111719,94821.0,94814.0,8.53e-05]
[1735775377823,0.70367419,94821.0,94814.0,0.09507472]
[1735775378367,1.52111719,94821.0,94814.0,0.09507472]
[1735775378773,1.52111719,94821.0,94814.0,8.53e-05]
[1735775378923,1.53491847,94821.0,94814.0,8.53e-05]
[1735775379130,0.72647547,94821.0,94814.0,8.53e-05]
[1735775379326,2.05772847,94821.0,94814.0,8.53e-05]
[1735775379649,2.05972847,94821.0,94814.0,8.53e-05]
[1735775379852,2.15814366,94821.0,94820.0,3e-07]
[1735775380089,0.82689066,94821.0,94820.0,3e-07]
[1735775380630,0.82489066,94821.0,94820.0,3e-07]
[1735775380889,0.82789066,94821.0,94820.0,3e-07]
[1735775381232,0.80557547,94821.0,94820.0,3e-07]
[1735775381437,0.80257547,94821.0,94820.0,3e-07]
[1735775381663,0.79357547,94821.0,94820.0,3e-07]
[1735775382109,0.80257547,94821.0,94820.0,3e-07]
[1735775382701,0.80257547,94821.0,94814.0,6e-07]
[1735775382702,0.5461311,94815.0,94814.0,6e-07]
[1735775383041,0.71744425,94815.0,94814.0,6e-07]
[1735775384072,0.71944425,94815.0,94814.0,6e-07]
[1735775385100,0.72844425,94815.0,94814.0,6e-07]
[1735775395290,0.72861485,94815.0,94814.0,6e-07]
[1735775396509,0.72861485,94815.0,94814.0,0.0816006]
[1735775396891,1.74804185,94815.0,94814.0,0.0816006]
[1735775397783,1.77035704,94815.0,94814.0,0.0816006]
[1735775402440,0.75093004,94815.0,94814.0,0.0816006]
[1735775402850,1.74275585,94815.0,94814.0,0.0816006]
[1735775403057,1.72825985,94815.0,94814.0,0.0816006]
[1735775403580,1.75057504,94815.0,94814.0,0.0816006]